fUST/lending_fUST_20250105
["ID","MTS","AMOUNT","RATE_DAILY","PERIOD"]
[347655723,1736025054112,-151.0,0.00019726,2]
[347655724,1736025054123,-1523.01,0.00019726,3]
[347655725,1736025054133,-151.0,0.00019726,2]
[347655726,1736025054142,-151.0,0.00019726,2]
[347655727,1736025054152,-691.2276305,0.00019726,2]
[347655728,1736025054162,-151.0,0.00019736,2]
[347655729,1736025054173,-151.0,0.00019736,2]
[347655730,1736025054182,-151.0,0.00019736,2]
[347655731,1736025054192,-151.0,0.00019736,2]
[347655732,1736025054202,-151.0,0.00019736,2]
[347655733,1736025054211,-500.0,0.00019773,2]
[347655734,1736025054221,-14860.06,0.000198,2]
[347655735,1736025054230,-14489.0,0.000198,2]
[347655736,1736025054239,-761.936917,0.000198,2]
[347655737,1736025054250,-761.936917,0.000198,2]
[347655738,1736025054260,-151.0,0.000198,2]
[347655739,1736025054269,-651.2478,0.000198,2]
[347655740,1736025054279,-651.2478,0.000198,2]
[347655741,1736025054289,-916.332105,0.000198,2]
[347655742,1736025054299,-916.332105,0.000198,2]
[347655743,1736025054310,-151.0,0.000198,2]
[347655744,1736025054319,-151.0,0.000198,2]
[347655745,1736025054329,-2460.795115,0.000198,2]
[347655746,1736025054339,-2460.795115,0.000198,2]
[347655747,1736025054348,-318.035145,0.000198,2]
[347655748,1736025054359,-482.108176,0.000198,2]
[347655749,1736025054368,-318.035145,0.000198,2]
[347655750,1736025054377,-400.217463,0.000198,2]
[347655751,1736025054387,-400.217463,0.000198,2]
[347655752,1736025054397,-5638.03497139,0.000198,2]
[347655753,1736025054407,-151.0,0.00019822,5]
[347655754,1736025054416,-5080.15491587,0.00019866,2]
[347655755,1736025054425,-2000.0,0.000199,5]
[347655756,1736025054435,-3000.0,0.000199,2]
[347655757,1736025054447,-151.0,0.000199,2]
[347655758,1736025054457,-172.247392,0.000199,2]
[347655759,1736025054467,-151.0,0.000199,2]
[347655760,1736025054476,-151.0,0.000199,2]
[347655761,1736025054486,-198.421301,0.000199,2]
[347655762,1736025054496,-198.421301,0.000199,2]
[347655763,1736025054505,-339.609977,0.000199,2]
[347655764,1736025054515,-339.609977,0.000199,2]
[347655765,1736025054525,-154.630622,0.000199,2]
[347655766,1736025054535,-154.630622,0.000199,2]
[347655767,1736025054545,-151.0,0.00019972,5]
[347655768,1736025054554,-151.22505067,0.0001998,3]
[347655769,1736025054565,-160.43041261,0.00019999,2]
[347655770,1736025054575,-196.622651,0.00019999,2]
[347655771,1736025054585,-196.622651,0.00019999,2]
[347655772,1736025054595,-2460.795115,0.00019999,2]
[347655773,1736025054605,-2460.795115,0.00019999,2]
[347655774,1736025054615,-318.035145,0.00019999,2]
[347655775,1736025054624,-482.108184,0.00019999,2]
[347655776,1736025054634,-318.035141,0.00019999,2]
[347655777,1736025054644,-400.217463,0.00019999,2]
[347655778,1736025054654,-400.217467,0.00019999,2]
[347655779,1736025054664,-100488.78535024,0.0002,2]
[347655780,1736025054673,-2005.51693958,0.0002,2]
[347655781,1736025054683,-8331.02585466,0.0002,2]
[347655782,1736025054693,-200.0,0.0002,2]
[347655783,1736025054702,-1000.0,0.0002,20]
[347655784,1736025054712,-688.66953998,0.0002,30]
[347655785,1736025054722,-166.537,0.0002,2]
[347655786,1736025054732,-4004.16076931,0.0002,2]
[347655787,1736025054742,-151.0,0.0002,2]
[347655788,1736025054752,-4315.36,0.0002,2]
[347655789,1736025054762,-258.009546,0.0002,2]
[347655790,1736025054772,-250.25334083,0.0002,3]
[347655791,1736025054781,-197.727184,0.0002,2]
[347655792,1736025054791,-151.0,0.0002,2]
[347655793,1736025054800,-151.0,0.0002,2]
[347655794,1736025054810,-151.0,0.0002,2]
[347655795,1736025054819,-151.0,0.0002,2]
[347655796,1736025054828,-646.74,0.0002,3]
[347655797,1736025054838,-500.0,0.0002,3]
[347655798,1736025054847,-500.0,0.0002,3]
[347655799,1736025054856,-500.0,0.0002,3]
[347655800,1736025054866,-500.0,0.0002,3]
[347655801,1736025054876,-500.0,0.0002,3]
[347655802,1736025054886,-761.936917,0.0002,2]
[347655803,1736025054895,-761.936917,0.0002,2]
[347655804,1736025054905,-761.936917,0.0002,2]
[347655805,1736025054915,-761.936917,0.0002,2]
[347655806,1736025054924,-761.936917,0.0002,2]
[347655807,1736025054933,-761.936917,0.0002,2]
[347655808,1736025054943,-761.936917,0.0002,2]
[347655809,1736025054952,-761.936921,0.0002,2]
[347655810,1736025054962,-500.0,0.0002,3]
[347655811,1736025054971,-500.0,0.0002,3]
[347655812,1736025054980,-500.0,0.0002,3]
[347655813,1736025054990,-558.6,0.0002,3]
[347655814,1736025054999,-500.0,0.0002,3]
[347655815,1736025055009,-500.0,0.0002,3]
[347655816,1736025055019,-151.0,0.0002,2]
[347655817,1736025055028,-151.0,0.0002,2]
[347655818,1736025055038,-151.0,0.0002,2]
[347655819,1736025055047,-156.612358,0.0002,2]
[347655820,1736025055057,-500.0,0.0002,3]
[347655821,1736025055069,-500.0,0.0002,3]
[347655822,1736025055078,-502.43515891,0.0002,3]
[347655823,1736025055092,-506.88712566,0.0002,3]
[347655824,1736025055103,-500.0,0.0002,3]
[347655825,1736025055112,-500.0,0.0002,3]
[347655826,1736025055121,-329.758358,0.0002,3]
[347655827,1736025055131,-196.622651,0.0002,2]
[347655828,1736025055140,-196.622651,0.0002,2]
[347655829,1736025055150,-196.622651,0.0002,2]
[347655830,1736025055160,-196.622647,0.0002,2]
[347655831,1736025055169,-151.0,0.0002,2]
[347655832,1736025055179,-272.293508,0.0002,2]
[347655833,1736025055189,-564.01,0.0002,3]
[347655834,1736025055199,-500.0,0.0002,3]
[347655835,1736025055209,-151.0,0.0002,2]
[347655836,1736025055219,-151.0,0.0002,2]
[347655837,1736025055228,-500.0,0.0002,3]
[347655838,1736025055238,-500.0,0.0002,3]
[347655839,1736025055247,-151.0,0.0002,2]
[347655840,1736025055257,-151.0,0.0002,2]
[347655841,1736025055266,-151.0,0.0002,2]
[347655842,1736025055275,-151.0,0.0002,2]
[347655843,1736025055286,-310.3504456,0.0002,3]
[347655844,1736025055295,-14271.0,0.0002,2]
[347655845,1736025055304,-465.93489542,0.0002,3]
[347655846,1736025055316,-500.0,0.0002,3]
[347655847,1736025055325,-500.0,0.0002,3]
[347655848,1736025055335,-281.88658548,0.0002,3]
[347655849,1736025055344,-500.0,0.0002,3]
[347655850,1736025055354,-500.0,0.0002,3]
[347655851,1736025055363,-500.0,0.0002,3]
[347655852,1736025055373,-651.2478,0.0002,2]
[347655853,1736025055383,-651.2478,0.0002,2]
[347655854,1736025055393,-651.2478,0.0002,2]
[347655855,1736025055403,-651.247797,0.0002,2]
[347655856,1736025055413,-916.332105,0.0002,2]
[347655857,1736025055422,-916.332105,0.0002,2]
[347655858,1736025055432,-848.99,0.0002,3]
[347655859,1736025055442,-916.332105,0.0002,2]
[347655860,1736025055451,-916.332101,0.0002,2]
[347655861,1736025055460,-504.90204004,0.0002,3]
[347655862,1736025055470,-500.0,0.0002,3]
[347655863,1736025055479,-500.0,0.0002,3]
[347655864,1736025055488,-500.0,0.0002,3]
[347655865,1736025055498,-151.0,0.0002,2]
[347655866,1736025055507,-151.0,0.0002,2]
[347655867,1736025055517,-504.18648522,0.0002,2]
[347655868,1736025055526,-1069.51,0.0002,3]
[347655869,1736025055535,-500.0,0.0002,3]
[347655870,1736025055545,-500.0,0.0002,3]
[347655871,1736025055554,-153.06530901,0.0002,3]
[347655872,1736025055564,-500.0,0.0002,3]
[347655873,1736025055573,-500.0,0.0002,3]
[347655874,1736025055582,-217.72989013,0.0002,3]
[347655875,1736025055592,-500.0,0.0002,3]
[347655876,1736025055601,-151.0,0.0002,2]
[347655877,1736025055611,-500.0,0.0002,3]
[347655878,1736025055621,-500.0,0.0002,3]
[347655879,1736025055630,-979.15,0.0002,3]
[347655880,1736025055639,-538.32,0.0002,3]
[347655881,1736025055649,-198.421301,0.0002,2]
[347655882,1736025055658,-500.0,0.0002,3]
[347655883,1736025055667,-198.421305,0.0002,2]
[347655884,1736025055677,-151.0,0.0002,2]
[347655885,1736025055686,-707.11,0.0002,3]
[347655886,1736025055695,-500.0,0.0002,3]
[347655887,1736025055704,-1096.8,0.0002,3]
[347655888,1736025055713,-500.0,0.0002,3]
[347655889,1736025055722,-500.0,0.0002,3]
[347655890,1736025055731,-323.24360412,0.0002,3]
[347655891,1736025055741,-902.85,0.0002,3]
[347655892,1736025055749,-1206.85,0.0002,3]
[347655893,1736025055759,-958.65,0.0002,3]
[347655894,1736025055768,-500.0,0.0002,3]
[347655895,1736025055779,-502.67242004,0.0002,3]
[347655896,1736025055790,-751.08,0.0002,3]
[347655897,1736025055800,-500.0,0.0002,3]
[347655898,1736025055810,-623.54,0.0002,3]
[347655899,1736025055819,-932.35,0.0002,3]
[347655900,1736025055827,-587.88,0.0002,3]
[347655901,1736025055838,-506.48334097,0.0002,3]
[347655902,1736025055847,-500.0,0.0002,3]
[347655903,1736025055857,-1527.28,0.0002,3]
[347655904,1736025055866,-500.0,0.0002,3]
[347655905,1736025055875,-500.0,0.0002,3]
[347655906,1736025055885,-1042.0,0.0002,3]
[347655907,1736025055897,-500.0,0.0002,3]
[347655908,1736025055907,-500.0,0.0002,3]
[347655909,1736025055919,-500.0,0.0002,3]
[347655910,1736025055928,-832.55,0.0002,3]
[347655911,1736025055937,-1371.27,0.0002,3]
[347655912,1736025055947,-500.0,0.0002,3]
[347655913,1736025055956,-339.609977,0.0002,2]
[347655914,1736025055965,-500.0,0.0002,3]
[347655915,1736025055975,-847.65,0.0002,3]
[347655916,1736025055984,-500.0,0.0002,3]
[347655917,1736025055993,-500.0,0.0002,3]
[347655918,1736025056002,-339.609985,0.0002,2]
[347655919,1736025056012,-500.0,0.0002,3]
[347655920,1736025056021,-500.0,0.0002,3]
[347655921,1736025056031,-500.0,0.0002,3]
[347655922,1736025056040,-500.0,0.0002,3]
[347655923,1736025056049,-500.0,0.0002,3]
[347655924,1736025056058,-1027.24,0.0002,3]
[347655925,1736025056069,-500.0,0.0002,3]
[347655926,1736025056078,-500.0,0.0002,3]
[347655927,1736025056091,-832.16,0.0002,3]
[347655928,1736025056100,-860.44,0.0002,3]
[347655929,1736025056109,-500.0,0.0002,3]
[347655930,1736025056118,-500.0,0.0002,3]
[347655931,1736025056127,-500.0,0.0002,3]
[347655932,1736025056137,-500.0,0.0002,3]
[347655933,1736025056146,-500.0,0.0002,3]
[347655934,1736025056156,-251.7630181,0.0002,3]
[347655935,1736025056167,-500.0,0.0002,3]
[347655936,1736025056177,-857.29,0.0002,3]
[347655937,1736025056186,-325.9334559,0.0002,3]
[347655938,1736025056195,-510.98824953,0.0002,3]
[347655939,1736025056204,-500.0,0.0002,3]
[347655940,1736025056213,-1570.19,0.0002,3]
[347655941,1736025056222,-500.0,0.0002,3]
[347655942,1736025056231,-500.0,0.0002,3]
[347655943,1736025056241,-500.0,0.0002,3]
[347655944,1736025056251,-500.0,0.0002,3]
[347655945,1736025056260,-500.0,0.0002,3]
[347655946,1736025056270,-500.0,0.0002,3]
[347655947,1736025056280,-892.61,0.0002,3]
[347655948,1736025056290,-500.0,0.0002,3]
[347655949,1736025056299,-500.0,0.0002,3]
[347655950,1736025056309,-500.0,0.0002,3]
[347655951,1736025056319,-500.0,0.0002,3]
[347655952,1736025056328,-500.0,0.0002,3]
[347655953,1736025056337,-500.0,0.0002,3]
[347655954,1736025056347,-938.0,0.0002,3]
[347655955,1736025056356,-500.0,0.0002,3]
[347655956,1736025056366,-651.67,0.0002,3]
[347655957,1736025056375,-528.09,0.0002,3]
[347655958,1736025056384,-832.77,0.0002,3]
[347655959,1736025056393,-500.0,0.0002,3]
[347655960,1736025056402,-500.0,0.0002,3]
[347655961,1736025056412,-1388.99,0.0002,3]
[347655962,1736025056456,-500.0,0.0002,3]
[347655963,1736025056466,-505.577336,0.0002,3]
[347655964,1736025056475,-327.32708643,0.0002,3]
[347655965,1736025056485,-500.0,0.0002,3]
[347655966,1736025056494,-500.0,0.0002,3]
[347655967,1736025056503,-500.0,0.0002,3]
[347655968,1736025056512,-500.0,0.0002,3]
[347655969,1736025056521,-500.0,0.0002,3]
[347655970,1736025056531,-500.0,0.0002,3]
[347655971,1736025056540,-1791.73,0.0002,3]
[347655972,1736025056549,-546.84,0.0002,3]
[347655973,1736025056558,-500.0,0.0002,3]
[347655974,1736025056568,-500.0,0.0002,3]
[347655975,1736025056577,-509.02135255,0.0002,3]
[347655976,1736025056586,-543.96,0.0002,3]
[347655977,1736025056596,-500.0,0.0002,3]
[347655978,1736025056605,-666.49,0.0002,3]
[347655979,1736025056614,-500.0,0.0002,3]
[347655980,1736025056623,-500.0,0.0002,3]
[347655981,1736025056633,-518.95,0.0002,3]
[347655982,1736025056642,-546.26,0.0002,3]
[347655983,1736025056652,-500.0,0.0002,3]
[347655984,1736025056661,-500.0,0.0002,3]
[347655985,1736025056670,-500.0,0.0002,3]
[347655986,1736025056679,-11287.9,0.0002,3]
[347655987,1736025056689,-1976.26,0.0002,3]
[347655988,1736025056698,-500.0,0.0002,3]
[347655989,1736025056707,-500.0,0.0002,3]
[347655990,1736025056716,-500.0,0.0002,3]
[347655991,1736025056726,-500.0,0.0002,3]
[347655992,1736025056735,-503.75913156,0.0002,3]
[347655993,1736025056744,-500.0,0.0002,3]
[347655994,1736025056753,-3887.77,0.0002,3]
[347655995,1736025056763,-500.0,0.0002,3]
[347655996,1736025056772,-543.56,0.0002,3]
[347655997,1736025056781,-500.0,0.0002,3]
[347655998,1736025056790,-500.0,0.0002,3]
[347655999,1736025056799,-2267.53,0.0002,2]
[347656000,1736025056809,-500.0,0.0002,3]
[347656001,1736025056818,-500.0,0.0002,3]
[347656002,1736025056827,-500.0,0.0002,3]
[347656003,1736025056836,-500.0,0.0002,3]
[347656004,1736025056845,-150.0,0.0002,2]
[347656005,1736025056854,-5934.35,0.0002,3]
[347656006,1736025056863,-500.0,0.0002,3]
[347656007,1736025056873,-529.94,0.0002,3]
[347656008,1736025056883,-1226.74,0.0002,3]
[347656009,1736025056892,-1736.46,0.0002,3]
[347656010,1736025056902,-500.0,0.0002,3]
[347656011,1736025056912,-500.0,0.0002,3]
[347656012,1736025056922,-930.43,0.0002,3]
[347656013,1736025056931,-500.0,0.0002,3]
[347656014,1736025056943,-504.76,0.0002,3]
[347656015,1736025056954,-1209.92,0.0002,3]
[347656016,1736025056965,-932.74,0.0002,3]
[347656017,1736025056974,-1957.76,0.0002,3]
[347656018,1736025056984,-500.0,0.0002,3]
[347656019,1736025056992,-500.0,0.0002,3]
[347656020,1736025057003,-991.32,0.0002,3]
[347656021,1736025057013,-3374.63,0.0002,3]
[347656022,1736025057024,-500.0,0.0002,3]
[347656023,1736025057035,-993.13,0.0002,3]
[347656024,1736025057045,-500.0,0.0002,3]
[347656025,1736025057055,-2178.95,0.0002,3]
[347656026,1736025057066,-1414.93,0.0002,3]
[347656027,1736025057075,-500.0,0.0002,3]
[347656028,1736025057087,-500.0,0.0002,3]
[347656029,1736025057098,-2050.61,0.0002,3]
[347656030,1736025057108,-500.0,0.0002,3]
[347656031,1736025057118,-500.0,0.0002,3]
[347656032,1736025057130,-500.0,0.0002,3]
[347656033,1736025057143,-500.0,0.0002,3]
[347656034,1736025057154,-1322.55,0.0002,3]
[347656035,1736025057163,-500.0,0.0002,3]
[347656036,1736025057173,-500.0,0.0002,3]
[347656037,1736025057183,-500.0,0.0002,3]
[347656038,1736025057192,-500.0,0.0002,3]
[347656039,1736025057201,-500.0,0.0002,3]
[347656040,1736025057212,-810.68,0.0002,3]
[347656041,1736025057221,-500.0,0.0002,3]
[347656042,1736025057231,-500.0,0.0002,3]
[347656043,1736025057240,-794.4,0.0002,3]
[347656044,1736025057249,-500.0,0.0002,3]
[347656045,1736025057258,-500.0,0.0002,3]
[347656046,1736025057267,-500.0,0.0002,3]
[347656047,1736025057276,-500.0,0.0002,3]
[347656048,1736025057286,-500.0,0.0002,3]
[347656049,1736025057296,-639.09663993,0.0002,3]
[347656050,1736025057305,-1022.94,0.0002,3]
[347656051,1736025057315,-500.0,0.0002,3]
[347656052,1736025057324,-566.15,0.0002,3]
[347656053,1736025057332,-52387.46,0.0002,3]
[347656054,1736025057341,-500.0,0.0002,3]
[347656055,1736025057350,-3528.88,0.0002,3]
[347656056,1736025057360,-544.79,0.0002,3]
[347656057,1736025057369,-500.0,0.0002,3]
[347656058,1736025057379,-500.0,0.0002,3]
[347656059,1736025057388,-1560.37,0.0002,3]
[347656060,1736025057397,-710.1,0.0002,2]
[347656061,1736025057406,-500.0,0.0002,3]
[347656062,1736025057415,-3978.56,0.0002,3]
[347656063,1736025057424,-154.630622,0.0002,2]
[347656064,1736025057433,-500.0,0.0002,3]
[347656065,1736025057443,-500.3,0.0002,3]
[347656066,1736025057452,-154.63063,0.0002,2]
[347656067,1736025057461,-500.0,0.0002,3]
[347656068,1736025057470,-500.0,0.0002,3]
[347656069,1736025057479,-500.0,0.0002,3]
[347656070,1736025057488,-500.0,0.0002,3]
[347656071,1736025057497,-2004.04,0.0002,3]
[347656072,1736025057506,-500.0,0.0002,3]
[347656073,1736025057515,-500.0,0.0002,3]
[347656074,1736025057524,-500.0,0.0002,3]
[347656075,1736025057533,-567.49,0.0002,3]
[347656076,1736025057542,-1825.64,0.0002,3]
[347656077,1736025057550,-500.0,0.0002,3]
[347656078,1736025057559,-500.0,0.0002,3]
[347656079,1736025057569,-500.0,0.0002,3]
[347656080,1736025057578,-500.0,0.0002,3]
[347656081,1736025057587,-2397.79,0.0002,3]
[347656082,1736025057596,-1238.1,0.0002,3]
[347656083,1736025057605,-1143.57,0.0002,3]
[347656084,1736025057614,-500.0,0.0002,3]
[347656085,1736025057623,-500.0,0.0002,3]
[347656086,1736025057634,-5561.67,0.0002,3]
[347656087,1736025057644,-610.29,0.0002,3]
[347656088,1736025057654,-10412.97,0.0002,3]
[347656089,1736025057663,-2588.43,0.0002,3]
[347656090,1736025057674,-2298.23,0.0002,3]
[347656091,1736025057684,-500.0,0.0002,3]
[347656092,1736025057694,-512.04,0.0002,3]
[347656093,1736025057704,-1448.98,0.0002,3]
[347656094,1736025057713,-500.1963225,0.0002,3]
[347656095,1736025057725,-500.0,0.0002,3]
[347656096,1736025057735,-500.0,0.0002,3]
[347656097,1736025057745,-500.0,0.0002,3]
[347656098,1736025057755,-595.75,0.0002,3]
[347656099,1736025057765,-4959.36,0.0002,3]
[347656100,1736025057775,-1523.01,0.0002,3]
[347656101,1736025057784,-1000.0,0.00020021,2]
[347656102,1736025057794,-161.0,0.00020053,2]
[347656103,1736025057804,-161.0,0.00020053,2]
[347656104,1736025057813,-161.0,0.00020053,2]
[347656105,1736025057822,-161.0,0.00020053,2]
[347656106,1736025057832,-197.0,0.00020053,2]
[347656107,1736025057841,-161.0,0.00020053,2]
[347656108,1736025057851,-161.0,0.00020053,2]
[347656109,1736025057861,-161.0,0.00020053,2]
[347656110,1736025057871,-161.0,0.00020053,2]
[347656111,1736025057881,-161.0,0.00020053,2]
[347656112,1736025057892,-161.0,0.00020053,2]
[347656113,1736025057903,-163.47,0.00020053,2]
[347656114,1736025057913,-10319.76690089,0.0002007,2]
[347656115,1736025057923,-151.0,0.00020123,5]
[347656116,1736025057933,-5638.0349713,0.00020131,2]
[347656117,1736025057942,-160.0,0.00020137,3]
[347656118,1736025057950,-160.0,0.00020137,5]
[347656119,1736025057959,-5080.15491587,0.00020141,2]
[347656120,1736025057968,-151.0,0.00020273,2]
[347656121,1736025057978,-646.74,0.00020273,3]
[347656122,1736025057987,-500.0,0.00020273,3]
[347656123,1736025057997,-500.0,0.00020273,3]
[347656124,1736025058006,-500.0,0.00020273,3]
[347656125,1736025058015,-500.0,0.00020273,3]
[347656126,1736025058024,-621.57528038,0.00020273,3]
[347656127,1736025058033,-500.0,0.00020273,3]
[347656128,1736025058042,-500.0,0.00020273,3]
[347656129,1736025058052,-500.0,0.00020273,3]
[347656130,1736025058061,-558.6,0.00020273,3]
[347656131,1736025058073,-500.0,0.00020273,3]
[347656132,1736025058083,-500.0,0.00020273,3]
[347656133,1736025058095,-506.36653024,0.00020273,3]
[347656134,1736025058104,-500.0,0.00020273,3]
[347656135,1736025058114,-500.0,0.00020273,3]
[347656136,1736025058124,-234.12598873,0.00020273,3]
[347656137,1736025058134,-564.01,0.00020273,3]
[347656138,1736025058143,-623.49444418,0.00020273,3]
[347656139,1736025058153,-500.0,0.00020273,3]
[347656140,1736025058163,-500.0,0.00020273,3]
[347656141,1736025058173,-272.580152,0.00020273,2]
[347656142,1736025058183,-500.0,0.00020273,3]
[347656143,1736025058192,-500.0,0.00020273,3]
[347656144,1736025058202,-500.0,0.00020273,3]
[347656145,1736025058212,-500.0,0.00020273,3]
[347656146,1736025058222,-848.99,0.00020273,3]
[347656147,1736025058232,-500.0,0.00020273,3]
[347656148,1736025058242,-288.76637694,0.00020273,3]
[347656149,1736025058252,-500.0,0.00020273,3]
[347656150,1736025058262,-1069.51,0.00020273,3]
[347656151,1736025058271,-500.0,0.00020273,3]
[347656152,1736025058282,-500.0,0.00020273,3]
[347656153,1736025058292,-500.0,0.00020273,3]
[347656154,1736025058302,-500.0,0.00020273,3]
[347656155,1736025058312,-504.1579835,0.00020273,3]
[347656156,1736025058322,-500.0,0.00020273,3]
[347656157,1736025058332,-500.0,0.00020273,3]
[347656158,1736025058342,-979.15,0.00020273,3]
[347656159,1736025058352,-538.32,0.00020273,3]
[347656160,1736025058361,-500.0,0.00020273,3]
[347656161,1736025058371,-707.11,0.00020273,3]
[347656162,1736025058381,-500.0,0.00020273,3]
[347656163,1736025058391,-1096.8,0.00020273,3]
[347656164,1736025058400,-500.0,0.00020273,3]
[347656165,1736025058409,-500.0,0.00020273,3]
[347656166,1736025058419,-902.85,0.00020273,3]
[347656167,1736025058429,-1206.85,0.00020273,3]
[347656168,1736025058439,-958.65,0.00020273,3]
[347656169,1736025058448,-500.0,0.00020273,3]
[347656170,1736025058458,-751.08,0.00020273,3]
[347656171,1736025058469,-500.0,0.00020273,3]
[347656172,1736025058479,-623.54,0.00020273,3]
[347656173,1736025058489,-932.35,0.00020273,3]
[347656174,1736025058498,-587.88,0.00020273,3]
[347656175,1736025058508,-500.0,0.00020273,3]
[347656176,1736025058519,-1527.28,0.00020273,3]
[347656177,1736025058530,-500.0,0.00020273,3]
[347656178,1736025058540,-500.0,0.00020273,3]
[347656179,1736025058550,-1042.0,0.00020273,3]
[347656180,1736025058559,-500.0,0.00020273,3]
[347656181,1736025058569,-500.0,0.00020273,3]
[347656182,1736025058579,-500.0,0.00020273,3]
[347656183,1736025058589,-832.55,0.00020273,3]
[347656184,1736025058599,-1371.27,0.00020273,3]
[347656185,1736025058609,-500.0,0.00020273,3]
[347656186,1736025058619,-500.0,0.00020273,3]
[347656187,1736025058629,-847.65,0.00020273,3]
[347656188,1736025058639,-500.0,0.00020273,3]
[347656189,1736025058649,-500.0,0.00020273,3]
[347656190,1736025058658,-500.0,0.00020273,3]
[347656191,1736025058667,-500.0,0.00020273,3]
[347656192,1736025058677,-500.0,0.00020273,3]
[347656193,1736025058686,-324.5353335,0.00020273,3]
[347656194,1736025058696,-500.0,0.00020273,3]
[347656195,1736025058705,-1027.24,0.00020273,3]
[347656196,1736025058715,-507.1148611,0.00020273,3]
[347656197,1736025058725,-500.0,0.00020273,3]
[347656198,1736025058734,-832.16,0.00020273,3]
[347656199,1736025058744,-500.0,0.00020273,3]
[347656200,1736025058753,-500.0,0.00020273,3]
[347656201,1736025058762,-860.44,0.00020273,3]
[347656202,1736025058772,-500.0,0.00020273,3]
[347656203,1736025058782,-500.0,0.00020273,3]
[347656204,1736025058793,-500.0,0.00020273,3]
[347656205,1736025058803,-540.31870832,0.00020273,3]
[347656206,1736025058815,-857.29,0.00020273,3]
[347656207,1736025058825,-344.77588925,0.00020273,3]
[347656208,1736025058834,-1570.19,0.00020273,3]
[347656209,1736025058844,-500.0,0.00020273,3]
[347656210,1736025058853,-500.0,0.00020273,3]
[347656211,1736025058862,-500.0,0.00020273,3]
[347656212,1736025058872,-500.0,0.00020273,3]
[347656213,1736025058883,-500.0,0.00020273,3]
[347656214,1736025058893,-892.61,0.00020273,3]
[347656215,1736025058904,-500.0,0.00020273,3]
[347656216,1736025058914,-500.0,0.00020273,3]
[347656217,1736025058924,-500.0,0.00020273,3]
[347656218,1736025058933,-500.0,0.00020273,3]
[347656219,1736025058944,-500.0,0.00020273,3]
[347656220,1736025058953,-500.0,0.00020273,3]
[347656221,1736025058964,-938.0,0.00020273,3]
[347656222,1736025058975,-273.16240629,0.00020273,3]